bitfinex/quotes_BTCUSD_20250716
["timestamp","ask_amount","ask_price","bid_price","bid_amount"]
[1752699620295,0.04807774,120050.0,120040.0,0.25500194]
[1752699620512,0.04807774,120050.0,120040.0,1.34148221]
[1752699620513,0.02305974,120050.0,120040.0,1.34148221]
[1752699620755,0.01,120060.0,120050.0,0.40804684]
[1752699620980,0.03008436,120080.0,120070.0,1.42380107]
[1752699620981,1e-08,120080.0,120070.0,1.42380107]
[1752699621242,0.05641961,120120.0,120110.0,0.02389296]
[1752699621472,0.05641961,120120.0,120110.0,0.60007432]
[1752699621697,0.24328972,120120.0,120110.0,0.1009027]
[1752699621928,0.64469221,120120.0,120110.0,0.11544355]
[1752699622158,0.64469221,120120.0,120110.0,0.01539242]
[1752699622379,0.69681322,120120.0,120110.0,0.01539242]
[1752699622569,0.31064113,120120.0,120110.0,1e-08]
[1752699622844,1.54897672,120120.0,120110.0,1e-08]
[1752699623065,1.59231438,120120.0,120110.0,1e-08]
[1752699623301,1.59231438,120120.0,120060.0,0.00208229]
[1752699623302,0.18322595,120070.0,120060.0,0.00208229]
[1752699623542,0.18331756,120010.0,120000.0,0.10152141]
[1752699623770,0.18331756,120010.0,120000.0,0.11358028]
[1752699623771,0.70092989,120010.0,120000.0,0.11358028]
[1752699623999,0.70092989,120010.0,120000.0,0.08551028]
[1752699624000,0.70414989,120010.0,120000.0,0.08551028]
[1752699624236,0.18334811,119990.0,119980.0,0.07042141]
[1752699624469,0.55450676,119990.0,119980.0,0.15593169]
[1752699624952,0.15538409,120010.0,120000.0,0.18333283]
[1752699625195,0.14705201,120010.0,120000.0,0.26884311]
[1752699625429,0.14705201,120010.0,120000.0,0.28024616]
[1752699625654,0.15538416,120010.0,120000.0,0.28024616]
[1752699625889,0.38782392,120020.0,120010.0,0.19164984]
[1752699626123,0.01666034,120040.0,120030.0,0.19161806]
[1752699626366,0.1999318,120040.0,120030.0,0.28019855]
[1752699626591,0.57109454,120040.0,120030.0,0.26879765]
[1752699626833,0.39615253,120040.0,120030.0,0.29686042]
[1752699627093,0.47949233,120070.0,120060.0,0.17491233]
[1752699627347,0.1,120070.0,120060.0,0.64302012]
[1752699627569,0.8019384,120070.0,120060.0,0.25209365]
[1752699627802,0.8019384,120070.0,120060.0,0.08551028]
[1752699628029,0.10050012,120070.0,120060.0,0.64510261]
[1752699628250,0.10050012,120070.0,120060.0,0.67412032]
[1752699629369,0.10050012,120070.0,120060.0,0.72412032]
[1752699629593,0.10050012,120070.0,120060.0,1.18491265]
[1752699630069,0.06474413,120120.0,120110.0,0.19149028]
[1752699630325,0.16654176,120090.0,120080.0,0.00307]
[1752699630554,0.0166559,120070.0,120060.0,0.52631094]
[1752699630777,0.01665577,120070.0,120060.0,0.62847893]
[1752699630993,0.02498403,120070.0,120060.0,0.62847893]
[1752699631214,0.02498382,120070.0,120060.0,0.76703893]
[1752699631428,0.04164034,120070.0,120060.0,0.62847893]
[1752699631681,0.03331818,120050.0,120040.0,0.128069]
[1752699631897,0.70126909,120050.0,120040.0,0.12549912]
[1752699632114,0.70126909,120050.0,120040.0,0.10050012]
[1752699632340,0.70126909,120050.0,120040.0,0.10883067]
[1752699632557,0.16659602,120060.0,120040.0,0.38068234]
[1752699632797,0.16659602,120060.0,120050.0,0.26043739]
[1752699632798,0.53463052,120060.0,120050.0,0.26043739]
[1752699633008,0.33837899,120060.0,120050.0,0.2770969]
[1752699633219,0.33005038,120060.0,120050.0,0.08551028]
[1752699633438,0.70121389,120060.0,120050.0,0.08551028]
[1752699633663,0.70109389,120060.0,120050.0,0.08551028]
[1752699634129,0.17492697,120050.0,120040.0,0.28377213]
[1752699634347,0.18325662,120050.0,120040.0,0.37761268]
[1752699634558,0.00832903,120060.0,120050.0,0.20314536]
[1752699634775,0.19157038,120060.0,120050.0,0.26366725]
[1752699634957,0.32989038,120060.0,120050.0,0.28032648]
[1752699635435,0.32985038,120060.0,120050.0,0.28727998]
[1752699635676,0.18324156,120060.0,120050.0,0.28404998]
[1752699635917,0.31307253,120060.0,120050.0,0.27572047]
[1752699636143,0.00832854,120060.0,120050.0,0.30070921]
[1752699636357,0.00666139,120060.0,120050.0,0.30070921]
[1752699636584,0.02498645,120060.0,120050.0,0.30393928]
[1752699636781,0.19157017,120060.0,120050.0,0.29560998]
[1752699637052,0.19157017,120060.0,120050.0,0.30070963]
[1752699637276,0.18324135,120060.0,120050.0,0.26739061]
[1752699637502,0.18324135,120060.0,120050.0,0.2757204]
[1752699637690,0.18324135,120060.0,120050.0,0.08551028]
[1752699637996,0.18324135,120060.0,120050.0,0.01528911]
[1752699637997,0.56581368,120060.0,120050.0,0.01528911]
[1752699638432,0.59771368,120060.0,120050.0,0.01528911]
[1752699639113,0.56581368,120060.0,120050.0,0.01528911]
[1752699639338,0.33781899,120060.0,120050.0,0.20177601]
[1752699639556,0.1545775,120060.0,120050.0,0.21010573]
[1752699639812,0.32948976,120060.0,120050.0,0.01528911]
[1752699640035,0.70065362,120060.0,120050.0,0.01528911]
[1752699640268,0.70898278,120060.0,120050.0,0.19021622]
[1752699640494,0.70898278,120060.0,120050.0,0.18188636]
[1752699640676,0.70898278,120060.0,120050.0,0.19021622]
[1752699640941,0.70898278,120060.0,120050.0,0.18188636]
[1752699641159,0.70898278,120060.0,120050.0,0.19021622]
[1752699641378,0.16290708,120060.0,120050.0,0.19854601]
[1752699641607,0.14458075,120060.0,120050.0,0.21520524]
[1752699641816,0.14458075,120060.0,120050.0,0.20687573]
[1752699641817,0.15290984,120060.0,120050.0,0.20687573]
[1752699642034,0.15290984,120060.0,120050.0,0.19854601]
[1752699642243,0.15290984,120060.0,120050.0,0.20687573]
[1752699642460,0.161239,120060.0,120050.0,0.19854601]
[1752699642900,0.32782237,120060.0,120050.0,0.18188636]
[1752699643083,0.32782237,120060.0,120050.0,0.19021622]
[1752699643350,0.3111648,120060.0,120050.0,0.18188636]
[1752699643605,0.3111648,120060.0,120050.0,0.01528911]
[1752699643786,0.74910804,120060.0,120050.0,0.01528911]
[1752699644763,0.74910804,120060.0,120050.0,0.19021615]
[1752699644764,0.00832861,120060.0,120050.0,0.19021615]
[1752699644970,0.15413743,120060.0,120050.0,0.20687538]
[1752699645195,0.00308,120080.0,120060.0,0.17491246]
[1752699645441,0.20821776,120080.0,120070.0,0.17698001]
[1752699645670,0.02498243,120080.0,120070.0,0.18185861]
[1752699645885,0.00832729,120080.0,120070.0,0.19018708]
[1752699646096,0.01665479,120080.0,120070.0,0.20684367]
[1752699646307,0.17899729,120080.0,120070.0,0.19851548]
[1752699646525,0.33555869,120080.0,120070.0,0.19020589]
[1752699646746,0.32057111,120080.0,120070.0,0.01530792]
[1752699646980,0.01665638,120070.0,120060.0,0.33933311]
[1752699647187,0.00832798,120070.0,120060.0,0.3713]
[1752699648088,0.15401535,120080.0,120060.0,0.37129952]
[1752699648321,0.32057097,120080.0,120070.0,0.1748979]
[1752699648541,0.32057097,120080.0,120070.0,0.18187882]
[1752699648774,0.69481573,120080.0,120070.0,0.18187882]
[1752699648991,0.69481573,120080.0,120070.0,0.01530932]
[1752699649206,0.69481573,120080.0,120070.0,0.18187882]
[1752699649422,0.69173573,120080.0,120070.0,0.18187882]
[1752699649641,0.3122434,120080.0,120070.0,0.18187882]
[1752699650081,0.3122434,120080.0,120070.0,0.01530932]
[1752699650576,0.69173573,120080.0,120070.0,0.01530932]
[1752699650801,0.16206278,120080.0,120070.0,0.19020722]
[1752699651027,0.16182031,120080.0,120070.0,0.20686367]
[1752699651276,0.33670399,120080.0,120070.0,0.18187882]
[1752699651708,0.32670903,120080.0,120070.0,0.18187882]
[1752699652178,0.32670903,120080.0,120070.0,0.18189623]
[1752699652386,0.32001083,120080.0,120070.0,0.18189623]
[1752699653457,0.32001083,120080.0,120070.0,0.01532673]
[1752699653666,0.70258316,120080.0,120070.0,0.01532673]
[1752699654079,0.32309083,120080.0,120070.0,0.01632673]
[1752699654287,0.70258316,120080.0,120070.0,0.01632673]
[1752699655185,1.19269344,120080.0,120070.0,0.01635083]
[1752699657802,1.21770344,120080.0,120070.0,1e-08]
[1752699658027,1.23224429,120080.0,120070.0,1e-08]
[1752699658469,1.24712809,120080.0,120070.0,1e-08]
[1752699658682,0.96624881,120050.0,120040.0,0.16785153]
[1752699658895,1.18807909,120050.0,120040.0,0.16785153]
[1752699659115,1.19115909,120050.0,120040.0,0.10050012]
[1752699659349,1.57065142,120050.0,120040.0,0.10050012]
[1752699660464,1.05483909,120050.0,120040.0,0.10050012]
[1752699660689,0.67534676,120050.0,120040.0,0.10050012]
[1752699660920,0.65945648,120050.0,120040.0,0.16785153]
[1752699661802,1.03894881,120050.0,120040.0,0.16785153]
[1752699662267,1.04202881,120050.0,120040.0,0.16785153]
[1752699664510,1.19113909,120050.0,120040.0,0.10050012]
[1752699665579,1.15923909,120050.0,120040.0,0.10050012]
[1752699666047,1.19113909,120050.0,120040.0,0.10050012]
[1752699666265,1.19013909,120050.0,120040.0,0.10050012]
[1752699666498,1.56963142,120050.0,120040.0,0.10050012]
[1752699666975,1.58417227,120050.0,120040.0,0.10050012]
[1752699667450,1.59417227,120050.0,120040.0,0.10050012]
[1752699667926,0.56280989,120010.0,120000.0,0.06471141]
[1752699668141,0.69844989,120010.0,120000.0,0.23152822]
[1752699668348,0.32206756,120010.0,120000.0,0.06486156]
[1752699668801,0.86289756,120010.0,120000.0,0.00015015]
[1752699669461,0.86389756,120010.0,120000.0,0.00015015]
[1752699670343,0.31987756,120010.0,120000.0,0.00015015]
[1752699670563,0.31987756,120010.0,120000.0,0.0154826]
[1752699670778,0.69936989,120010.0,120000.0,0.0154826]
[1752699671214,0.71247989,120010.0,120000.0,0.0154826]
[1752699671749,0.71231989,120010.0,120000.0,0.0154826]
[1752699671955,0.71231989,120010.0,120000.0,0.18214926]
[1752699671956,0.32971714,120010.0,120000.0,0.18214926]
[1752699672420,0.33405143,120010.0,120000.0,0.0154826]
[1752699672639,0.80216404,120010.0,120000.0,0.0154826]
[1752699672863,0.86426404,120010.0,120000.0,0.0154826]
[1752699673504,0.86426404,120010.0,120000.0,0.01548]
[1752699674415,0.86426404,120010.0,120000.0,0.0154687]
[1752699675939,1.20426404,120010.0,120000.0,0.0154687]
[1752699678774,1.20628404,120010.0,120000.0,0.0154687]
[1752699679191,1.20628404,120010.0,120000.0,0.0154654]
[1752699680704,0.69139171,120010.0,120000.0,0.0154654]
[1752699680916,0.19431769,120010.0,120000.0,0.0174654]
[1752699681139,0.17143687,120010.0,120000.0,0.20183851]
[1752699681353,0.1714368,120010.0,120000.0,0.21017156]
[1752699681577,0.011,120010.0,120000.0,0.20183851]
[1752699681811,0.1364395,120010.0,120000.0,0.2813044]
[1752699682246,0.1364395,120010.0,120000.0,0.28130312]
[1752699682468,0.0009995,120010.0,120000.0,0.74630573]
[1752699682689,0.0009995,120010.0,120000.0,0.76084658]
[1752699682907,0.13544,120020.0,120010.0,0.25734984]
[1752699683125,0.13544,120020.0,120010.0,0.4255255]
[1752699683344,0.13544,120020.0,120010.0,0.4285655]
[1752699685025,0.13544,120020.0,120010.0,0.41325153]
[1752699685299,0.13544,120020.0,120010.0,0.42859005]
[1752699686399,0.13544,120020.0,120010.0,0.43059005]
[1752699687054,0.01666061,120040.0,120010.0,0.43059005]
[1752699687281,0.31871173,120040.0,120030.0,0.16662501]
[1752699687495,0.31871173,120040.0,120030.0,0.18196353]
[1752699687720,0.15210061,120040.0,120030.0,0.19229471]
[1752699687931,0.15210061,120040.0,120030.0,0.19533471]
[1752699688150,0.13544,120040.0,120030.0,0.21199644]
[1752699688390,0.13544,120040.0,120030.0,0.27589644]
[1752699688622,0.32704187,120040.0,120030.0,0.25923471]
[1752699688834,0.16043075,120040.0,120030.0,0.27589672]
[1752699689055,0.15210034,120040.0,120030.0,0.28422748]
[1752699689507,0.13544,120040.0,120030.0,0.28422748]
[1752699689722,0.01,120050.0,120040.0,0.19160215]
[1752699689938,0.1787179,120050.0,120040.0,0.20061053]
[1752699690161,0.17038818,120050.0,120040.0,0.21198067]
[1752699690395,0.03498825,120050.0,120040.0,0.21198067]
[1752699690605,0.0433179,120050.0,120040.0,0.21198067]
[1752699690811,0.05164769,120050.0,120040.0,0.19664221]
[1752699691039,0.05164769,120050.0,120040.0,0.21197781]
[1752699691268,0.05164769,120050.0,120040.0,0.21197788]
[1752699691529,0.04331846,120050.0,120040.0,0.20364768]
[1752699691763,0.03332134,120050.0,120040.0,0.22030829]
[1752699691995,0.03332134,120050.0,120040.0,0.20364768]
[1752699692249,0.0416512,120050.0,120040.0,0.20364768]
[1752699692493,0.03332134,120050.0,120040.0,0.20364768]
[1752699692731,0.03332134,120050.0,120040.0,0.21197802]
[1752699692968,0.00833211,120050.0,120040.0,0.28993836]
[1752699693210,2.88e-06,120050.0,120040.0,0.28993836]
[1752699693700,2.88e-06,120050.0,120040.0,0.37544864]
[1752699695056,0.2686729,120070.0,120060.0,0.18324149]
[1752699695301,0.25201617,120070.0,120060.0,0.21196598]
[1752699695509,0.11665617,120070.0,120060.0,0.21196598]
[1752699695710,0.12498443,120070.0,120060.0,0.21196598]
[1752699695915,0.11665617,120070.0,120060.0,0.2202948]
[1752699696132,0.1249845,120070.0,120060.0,0.20363709]
[1752699696365,0.10832798,120070.0,120060.0,0.21196611]
[1752699696601,0.1,120070.0,120060.0,0.28159479]
[1752699698870,0.1,120070.0,120060.0,0.70710507]
[1752699699104,0.1,120070.0,120060.0,0.84242507]
[1752699699545,0.1,120070.0,120060.0,0.82808947]
[1752699699776,0.1,120070.0,120060.0,0.84336415]
[1752699700205,0.1,120070.0,120060.0,0.84236415]
[1752699700660,0.1,120070.0,120060.0,0.84436415]
[1752699701756,0.09000575,120070.0,120060.0,0.84436415]
[1752699702799,0.09000575,120070.0,120060.0,0.85193717]
[1752699704709,0.09000575,120070.0,120060.0,0.85189717]
[1752699705941,0.09000575,120070.0,120060.0,0.84432415]
[1752699706660,0.09000575,120070.0,120060.0,1.22381648]
[1752699706904,0.09000575,120070.0,120060.0,0.84428415]
[1752699707599,0.08001192,120070.0,120060.0,0.84428415]
[1752699708306,0.08001192,120070.0,120060.0,0.84428265]
[1752699708999,0.08001192,120070.0,120060.0,1.08853498]
[1752699709226,0.08001192,120070.0,120060.0,0.81368265]
[1752699709466,0.08001192,120070.0,120060.0,0.81369566]
[1752699709689,0.08001192,120070.0,120060.0,0.64775566]
[1752699709914,0.08001192,120070.0,120060.0,0.78299566]
[1752699710151,0.09866782,120070.0,120060.0,0.5509667]
[1752699710409,0.09866782,120070.0,120060.0,0.01728619]
[1752699710410,0.7109502,120070.0,120060.0,0.01728619]
[1752699712201,0.70095426,120070.0,120060.0,0.01728619]
[1752699712424,0.70095426,120070.0,120060.0,0.18386956]
[1752699712923,0.69262614,120070.0,120060.0,0.01728619]
[1752699713630,0.69262614,120070.0,120060.0,0.01528619]
[1752699714778,0.77813642,120070.0,120060.0,0.01528619]
[1752699715902,0.77813642,120070.0,120060.0,0.01488619]
[1752699716576,0.39864409,120070.0,120060.0,0.01488619]
[1752699716801,0.31313381,120070.0,120060.0,0.01488619]
[1752699717019,0.30480548,120070.0,120050.0,0.20824439]
[1752699717277,0.08867271,120070.0,120060.0,0.19368045]
[1752699717515,0.08867202,120070.0,120060.0,0.34549788]
[1752699717733,0.09500035,120070.0,120060.0,0.34549788]
[1752699718163,0.09500035,120070.0,120060.0,0.34844788]
[1752699718164,0.0783439,120070.0,120060.0,0.34844788]
[1752699718391,0.08500475,120070.0,120060.0,0.34844788]
[1752699718612,0.09333294,120070.0,120060.0,0.34844788]
[1752699719266,0.09633294,120070.0,120060.0,0.34844788]
[1752699719706,0.09633329,120070.0,120060.0,0.3401192]
[1752699720020,0.09333329,120070.0,120060.0,0.3401192]
[1752699720264,0.09333322,120070.0,120060.0,0.34844788]
[1752699720799,0.08500489,120070.0,120060.0,0.34844788]
[1752699721235,0.0600208,120070.0,120060.0,0.34844788]
[1752699721457,0.0600208,120070.0,120060.0,0.39844788]
[1752699722313,0.05002622,120070.0,120060.0,0.39844788]
[1752699723660,0.05002622,120070.0,120060.0,0.37334788]
[1752699724530,0.06002622,120070.0,120060.0,0.37334788]
[1752699725343,0.06835407,120070.0,120060.0,0.34840788]
[1752699725556,0.07668205,120070.0,120060.0,0.34840788]
[1752699726032,0.0850101,120070.0,120060.0,0.34836802]
[1752699726316,0.24850231,120070.0,120060.0,0.17491246]
[1752699726582,0.24850231,120070.0,120060.0,0.32665045]
[1752699726824,0.24850231,120070.0,120060.0,0.30166337]
[1752699727027,0.27450231,120070.0,120060.0,0.13508]
[1752699727235,0.29860231,120070.0,120060.0,0.30166337]
[1752699727880,0.29860231,120070.0,120060.0,0.19029138]
[1752699728089,0.29860231,120070.0,120060.0,0.19862034]
[1752699728295,0.29860231,120070.0,120060.0,0.31704229]
[1752699728501,0.29860231,120070.0,120060.0,0.32537145]
[1752699728747,0.28860681,120070.0,120060.0,0.32537145]
[1752699728961,0.28860681,120070.0,120060.0,0.34202957]
[1752699729516,0.27195022,120070.0,120060.0,0.31704229]
[1752699729777,0.27195022,120070.0,120060.0,0.33370041]
[1752699729986,0.27195022,120070.0,120060.0,0.15041892]
[1752699730245,0.27195022,120070.0,120060.0,0.18196229]
[1752699730467,0.27195022,120070.0,120060.0,0.31700229]
[1752699730686,0.22185022,120070.0,120060.0,0.33366041]
[1752699731342,0.23017855,120070.0,120060.0,0.3419893]
[1752699731566,0.23850667,120070.0,120060.0,0.3419893]
[1752699731816,0.23850667,120070.0,120060.0,0.32533145]
[1752699732265,0.0420952,120070.0,120060.0,0.32224229]
[1752699732482,0.0400352,120070.0,120060.0,0.34722895]
[1752699732704,0.05669124,120070.0,120060.0,0.33886041]
[1752699732914,0.05875117,120070.0,120060.0,0.35551798]
[1752699733368,0.06707915,120070.0,120060.0,0.35238798]
[1752699733589,0.0587511,120070.0,120060.0,0.35238798]
[1752699734218,0.0420952,120070.0,120060.0,0.35238798]
[1752699734433,0.0400352,120070.0,120060.0,0.35551798]
[1752699734656,0.04836305,120070.0,120060.0,0.35551798]
[1752699734885,0.0400352,120070.0,120060.0,0.35551798]
[1752699735543,0.04836305,120070.0,120060.0,0.35551798]
[1752699735795,0.07008005,120070.0,120060.0,0.20694923]
[1752699736006,0.08159845,120070.0,120060.0,0.33362041]
[1752699736254,0.25649642,120070.0,120060.0,0.34194944]
[1752699736470,0.07327005,120070.0,120060.0,0.35027826]
[1752699736678,0.07326998,120070.0,120060.0,0.35860694]
[1752699737146,0.07326991,120070.0,120060.0,0.35860694]
[1752699737581,0.06175179,120070.0,120060.0,0.36071694]
[1752699738454,0.07007998,120070.0,120060.0,0.36071694]
[1752699738667,0.24497836,120070.0,120060.0,0.20905944]
[1752699738881,0.07840879,120070.0,120060.0,0.35234826]
[1752699739096,0.07840879,120070.0,120060.0,0.35235798]
[1752699739097,0.24497829,120070.0,120060.0,0.35235798]
[1752699739315,0.24497829,120070.0,120060.0,0.1924111]
[1752699739555,0.24816829,120070.0,120060.0,0.34191895]
[1752699739777,0.24816871,120070.0,120060.0,0.19863325]
[1752699740014,0.24816871,120070.0,120060.0,0.34188214]
[1752699740231,0.08159921,120070.0,120060.0,0.35021096]
[1752699740688,0.07327067,120070.0,120060.0,0.35021055]
[1752699740902,0.06494234,120070.0,120060.0,0.35021082]
[1752699741098,0.06494234,120070.0,120060.0,0.33481906]
[1752699741357,0.06175234,120070.0,120060.0,0.33692906]
[1752699741596,0.06175234,120070.0,120060.0,0.72859872]
[1752699741597,0.04303589,120070.0,120060.0,0.72859872]
[1752699741834,0.04303589,120070.0,120060.0,0.77889872]
[1752699742824,0.04303589,120070.0,120060.0,0.864409]
[1752699744206,0.04303589,120070.0,120060.0,0.47586934]
[1752699744436,0.04303589,120070.0,120060.0,0.864409]
[1752699744946,0.04303589,120070.0,120060.0,0.47586934]
[1752699745208,0.04303589,120070.0,120060.0,0.864409]
[1752699745435,0.04303589,120070.0,120060.0,0.47586934]
[1752699745682,0.04303589,120070.0,120060.0,0.864409]
[1752699746148,0.04303589,120070.0,120060.0,0.29064934]
[1752699746376,0.04303589,120070.0,120060.0,0.42552934]
[1752699746600,0.05136381,120070.0,120060.0,0.42552934]
[1752699746835,0.04303589,120070.0,120060.0,0.42552934]
[1752699747566,0.04303589,120070.0,120060.0,0.42548934]
[1752699748222,0.03803589,120070.0,120060.0,0.42548934]
[1752699748935,0.05469179,120070.0,120060.0,0.26566281]
[1752699749208,0.05469179,120070.0,120060.0,0.42548947]
[1752699749886,0.05469172,120070.0,120060.0,0.42548947]
[1752699750103,0.03803589,120070.0,120060.0,0.42648947]
[1752699750325,0.04636374,120070.0,120060.0,0.42648947]
[1752699750549,0.03803589,120070.0,120060.0,0.42648947]
[1752699751501,0.04636374,120070.0,120060.0,0.29164947]
[1752699751721,0.05469172,120070.0,120060.0,0.42644947]
[1752699752154,0.03803589,120070.0,120060.0,0.42644947]
[1752699753550,0.03803589,120070.0,120060.0,0.81498913]
[1752699756048,0.03803589,120070.0,120060.0,0.29164947]
[1752699756276,0.03803589,120070.0,120060.0,0.42636947]
[1752699756924,0.05469179,120070.0,120060.0,0.42636947]
[1752699757136,0.03803589,120070.0,120060.0,0.42636947]
[1752699757347,0.04636387,120070.0,120060.0,0.42636947]
[1752699757555,0.03803589,120070.0,120060.0,0.42636947]
[1752699759976,0.03803589,120070.0,120060.0,0.81490913]
[1752699760189,0.03803589,120070.0,120060.0,0.42636947]
[1752699763080,0.03803589,120070.0,120060.0,0.81490913]
[1752699763291,0.04636374,120070.0,120060.0,0.42636947]
[1752699763503,0.03803589,120070.0,120060.0,0.42636947]
[1752699763706,0.03803589,120070.0,120060.0,0.81490913]
[1752699763921,0.04636387,120070.0,120060.0,0.42628947]
[1752699764351,0.04636381,120070.0,120060.0,0.42628947]
[1752699764553,0.04636381,120070.0,120060.0,0.81482913]
[1752699764769,0.05469186,120070.0,120060.0,0.42628947]
[1752699764983,0.04636381,120070.0,120060.0,0.42628947]
[1752699765198,0.03803589,120070.0,120060.0,0.42628947]
[1752699765420,0.04636374,120070.0,120060.0,0.42628947]
[1752699765633,0.6637315,120070.0,120060.0,0.16758337]
[1752699765848,0.6637315,120070.0,120060.0,0.31051253]
[1752699766262,0.27519184,120070.0,120060.0,0.31884162]
[1752699766474,0.10862193,120070.0,120060.0,0.33549933]
[1752699766730,0.04848374,120070.0,120060.0,0.34589801]
[1752699766939,0.04015589,120070.0,120060.0,0.21129801]
[1752699767148,0.04848381,120070.0,120060.0,0.21129801]
[1752699767359,0.07346852,120070.0,120060.0,0.20089947]
[1752699767573,0.07657852,120070.0,120060.0,0.19257058]
[1752699767805,0.06825012,120070.0,120060.0,0.20089947]
[1752699768064,0.06825012,120070.0,120060.0,0.20922829]
[1752699768289,0.05992186,120070.0,120060.0,0.20089947]
[1752699768513,0.05992186,120070.0,120060.0,0.20922774]
[1752699768514,0.05159381,120070.0,120060.0,0.20922774]
[1752699768725,0.05159381,120070.0,120060.0,0.21129774]
[1752699768949,0.05159381,120070.0,120060.0,0.19464031]
[1752699769125,0.06825012,120070.0,120060.0,0.20296913]
[1752699769376,0.06825012,120070.0,120060.0,0.19464031]
[1752699769807,0.05992186,120070.0,120060.0,0.18631142]
[1752699769993,0.07657838,120070.0,120060.0,0.19464031]
[1752699770210,0.05992186,120070.0,120060.0,0.21129788]
[1752699770439,0.04326589,120070.0,120060.0,0.21129747]
[1752699770678,0.04848387,120070.0,120060.0,0.21129747]
[1752699770913,0.05681199,120070.0,120060.0,0.21129747]
[1752699771141,0.06514018,120070.0,120060.0,0.19464004]
[1752699771366,0.06514018,120070.0,120060.0,0.20296879]
[1752699771582,0.05681199,120070.0,120060.0,0.21129747]
[1752699771816,0.04848387,120070.0,120060.0,0.21129747]
[1752699772039,0.03803589,120070.0,120060.0,0.60306713]
[1752699772255,0.05469172,120070.0,120060.0,0.21452747]
[1752699772477,0.04636374,120070.0,120060.0,0.21452747]
[1752699772963,0.05469166,120070.0,120060.0,0.21452747]
[1752699773661,0.06301964,120070.0,120060.0,0.21452747]
[1752699774050,0.05469166,120070.0,120060.0,0.21452747]
[1752699774522,0.06301964,120070.0,120060.0,0.21452747]
[1752699774726,0.06301964,120070.0,120060.0,0.34896747]
[1752699774932,0.06513964,120070.0,120060.0,0.34896747]
[1752699775145,0.06513964,120070.0,120060.0,0.21452747]
[1752699775590,0.06513964,120070.0,120060.0,0.34896747]
[1752699776825,0.07346769,120070.0,120060.0,0.34896747]
[1752699777029,0.06513964,120070.0,120060.0,0.34896747]
[1752699777238,0.05681166,120070.0,120060.0,0.34896747]
[1752699778208,0.04015589,120070.0,120060.0,0.34896747]
[1752699778431,0.04848381,120070.0,120060.0,0.34896747]
[1752699779284,0.05681179,120070.0,120060.0,0.34896747]
[1752699780121,0.04848381,120070.0,120060.0,0.34896747]
[1752699780912,0.05681193,120070.0,120060.0,0.34896747]
[1752699781232,0.04848381,120070.0,120060.0,0.34896747]
[1752699781456,0.04848381,120070.0,120060.0,0.34573747]
[1752699781659,0.11775012,120070.0,120060.0,0.30194337]
[1752699781906,0.10942186,120070.0,120060.0,0.33525892]
[1752699782122,0.12607838,120070.0,120060.0,0.32693031]
[1752699782338,0.11775005,120070.0,120060.0,0.32693031]
[1752699782556,0.09276589,120070.0,120060.0,0.33525899]
[1752699782787,0.10109381,120070.0,120060.0,0.33525899]
[1752699783003,0.10942186,120070.0,120060.0,0.33525899]
[1752699783243,0.10942179,120070.0,120060.0,0.33525899]
[1752699783450,0.10942179,120070.0,120060.0,0.33525906]
[1752699783667,0.1260781,120070.0,120060.0,0.32693038]
[1752699783886,0.79885157,120070.0,120060.0,0.001]
[1752699784117,1.31012147,120070.0,120060.0,0.001]
[1752699784335,1.32466232,120070.0,120060.0,0.001]
[1752699784564,1.2389027,120070.0,120060.0,0.001]
[1752699784793,1.31391569,120070.0,120060.0,1e-08]
[1752699785028,1.31391569,120070.0,119990.0,0.2579681]
[1752699785029,0.17499985,120000.0,119990.0,0.24236598]
[1752699785251,0.20378985,120000.0,119990.0,0.06735141]
[1752699785509,0.04545617,120000.0,119990.0,0.25069979]
[1752699785732,0.19685609,120000.0,119990.0,0.25069979]
[1752699785993,0.19685644,120000.0,119990.0,0.25069979]
[1752699786214,0.18018999,120000.0,119990.0,0.23403196]
[1752699786431,0.18018999,120000.0,119990.0,0.25069972]
[1752699786432,0.20391483,120000.0,119990.0,0.25069972]
[1752699787358,0.21224795,120000.0,119990.0,0.25903333]
[1752699787571,0.21224795,120000.0,119990.0,0.18334831]
[1752699787791,0.05391406,120000.0,119990.0,0.2000156]
[1752699788033,0.03864732,120000.0,119990.0,0.20001567]
[1752699788262,0.21364731,120000.0,119990.0,0.20001574]
[1752699788493,0.2053144,120000.0,119990.0,0.18334831]
[1752699788713,0.19698128,120000.0,119990.0,0.1750145]
[1752699788927,0.19698128,120000.0,119990.0,0.18334831]
[1752699789116,0.18864795,120000.0,119990.0,0.19168206]
[1752699789552,0.01061782,120000.0,119990.0,0.2020156]
[1752699789794,0.20228377,120000.0,119990.0,0.20201574]
[1752699790063,0.00012484,120000.0,119990.0,0.60200894]
[1752699790290,0.00012484,120000.0,119990.0,0.76028894]
[1752699790538,0.00012484,120000.0,119990.0,0.78388894]
[1752699790794,0.00012484,120000.0,119990.0,0.73628894]
[1752699791652,0.00012484,120000.0,119990.0,0.60200894]
[1752699791839,0.01895045,120000.0,119990.0,0.34770928]
[1752699792097,0.0272835,120000.0,119990.0,0.34458928]
[1752699792342,0.01895045,120000.0,119990.0,0.34458928]
[1752699792572,0.18561711,120000.0,119990.0,0.32792206]
[1752699792791,0.0272835,120000.0,119990.0,0.31958831]
[1752699793042,0.0272835,120000.0,119990.0,0.3362556]
[1752699793266,0.0272835,120000.0,119990.0,0.34458921]
[1752699793501,0.03561669,120000.0,119990.0,0.34458921]
[1752699793718,0.01061754,120000.0,119990.0,0.34458921]
[1752699793940,0.01895038,120000.0,119990.0,0.34458921]
[1752699794247,0.00312553,120000.0,119990.0,0.34770921]
[1752699794479,0.02812419,120000.0,119990.0,0.34770921]
[1752699794705,0.01979114,120000.0,119990.0,0.34770921]
[1752699795162,0.01145823,120000.0,119990.0,0.34770921]
[1752699795379,0.00312553,120000.0,119990.0,0.73624887]
[1752699795603,0.00312553,120000.0,119990.0,1.20935915]
[1752699795846,0.00312553,120000.0,119990.0,1.61243966]
[1752699796356,0.05253,120050.0,120040.0,0.18327187]
[1752699796590,0.00832937,120050.0,120040.0,0.18527112]
[1752699796835,0.02704846,120050.0,120040.0,0.18527112]
[1752699797054,0.03537818,120050.0,120040.0,0.18527112]
[1752699797536,0.04370797,120050.0,120040.0,0.18527146]
[1752699797757,0.03537804,120050.0,120040.0,0.18527146]
[1752699798200,0.02704832,120050.0,120040.0,0.18527146]
[1752699798642,0.0083293,120050.0,120040.0,0.18839146]
[1752699798870,0.01665888,120050.0,120040.0,0.18839146]
[1752699799089,0.02704832,120050.0,120040.0,0.18839146]
[1752699799511,0.02704825,120050.0,120040.0,0.18527146]
[1752699799737,0.02904825,120050.0,120040.0,0.18527146]
[1752699800130,0.03737797,120050.0,120040.0,0.18527146]
[1752699801215,0.02904825,120050.0,120040.0,0.18527146]
[1752699801625,0.00406,120050.0,120040.0,0.18527146]
[1752699801835,0.002,120050.0,120040.0,0.18839146]
[1752699802055,0.0103293,120050.0,120040.0,0.18839146]
[1752699802281,0.01032923,120050.0,120040.0,0.18839146]
[1752699802490,0.002,120050.0,120040.0,0.18839146]
[1752699802912,0.01032923,120050.0,120040.0,0.18839146]
[1752699803348,0.01865853,120050.0,120040.0,0.18839146]
[1752699803566,0.03698804,120050.0,120040.0,0.18839146]